bitfinex/quotes_SOLUSD_20220119
["timestamp","ask_amount","ask_price","bid_price","bid_amount"]
[1642572449474,10.8633,138.15,138.11,40.9943942]
[1642572450580,10.8625,138.16,138.11,40.9943942]
[1642572454180,50.73082609,138.16,138.11,40.9943942]
[1642572454379,48.23082609,138.16,138.11,40.9943942]
[1642572454585,8.3625,138.16,138.11,40.9943942]
[1642572455584,8.3625,138.16,138.09,24.7627]
[1642572455985,11.1138,138.15,138.08,2.895]
[1642572456185,14.0098,138.15,138.05,13.306]
[1642572456385,14.0098,138.15,138.06,24.7121]
[1642572456583,14.0098,138.15,138.07,39.0043136]
[1642572456584,35.0998944,138.14,138.07,39.0043136]
[1642572456786,0.25,138.13,138.07,39.0043136]
[1642572458485,11.1155,138.13,138.07,39.0043136]
[1642572459186,14.0115,138.13,138.07,39.0043136]
[1642572460487,14.0115,138.13,138.06,30.7121]
[1642572460717,14.0115,138.13,138.04,22.9598]
[1642572460918,6.0,138.12,138.01,13.306]
[1642572461118,6.0,138.12,138.01,10.41]
[1642572461119,10.8694,138.09,138.01,10.41]
[1642572461519,10.8694,138.09,138.02,35.7345]
[1642572462122,10.8694,138.09,138.03,0.25]
[1642572464822,13.763,138.11,138.03,0.25]
[1642572465024,2.896,138.13,138.04,2.896]
[1642572465226,2.04381217,138.15,138.05,0.25]
[1642572465426,2.896,138.14,138.05,47.86828887]
[1642572465625,2.896,138.14,138.06,2.896]
[1642572465825,2.896,138.14,138.07,0.25]
[1642572466425,10.8656,138.13,138.07,0.25]
[1642572467829,13.76,138.15,138.08,42.98069507]
[1642572468028,10.864,138.15,138.08,42.98069507]
[1642572468231,10.864,138.15,138.09,0.25]
[1642572468626,10.864,138.15,138.08,42.98069507]
[1642572468827,59.57656913,138.14,138.08,42.98069507]
[1642572469030,56.93056913,138.14,138.08,42.98069507]
[1642572469228,56.93056913,138.14,138.09,0.25]
[1642572469430,56.93056913,138.14,138.1,0.02265767]
[1642572472330,11.1143,138.14,138.1,0.02265767]
[1642572472528,14.0103,138.14,138.1,0.02265767]
[1642572472931,13.7603,138.14,138.1,0.02265767]
[1642572473330,2.896,138.14,138.1,0.02265767]
[1642572473529,10.8634,138.15,138.1,0.02265767]
[1642572474432,10.8634,138.15,138.09,0.27259695]
[1642572474830,12.90721217,138.15,138.09,0.27259695]
[1642572475030,10.8634,138.15,138.09,0.27259695]
[1642572475230,12.90721217,138.15,138.09,0.27259695]
[1642572476232,10.8634,138.15,138.09,0.27259695]
[1642572477931,12.90641217,138.16,138.09,0.27259695]
[1642572478234,4.93981217,138.17,138.09,6.27259695]
[1642572478431,2.04381217,138.17,138.09,6.27259695]
[1642572479033,2.04381217,138.17,138.1,24.7453]
[1642572479231,2.04381217,138.17,138.11,0.25]
[1642572479475,2.04381217,138.17,138.11,0.27262731]
[1642572479634,4.93881217,138.17,138.11,0.27262731]
[1642572480633,12.90581217,138.17,138.11,0.27262731]
[1642572483440,2.04381217,138.17,138.11,6.27262731]
[1642572483642,2.895,138.18,138.12,82.37]
[1642572483836,2.04381217,138.2,138.12,82.37]
[1642572484035,2.04381217,138.2,138.13,53.7907648]
[1642572484235,4.93881217,138.21,138.13,53.7907648]
[1642572484436,2.04381217,138.2,138.13,55.17196958]
[1642572484639,4.93881217,138.21,138.13,62.68996958]
[1642572485037,4.93881217,138.21,138.14,22.9628]
[1642572485240,4.93881217,138.21,138.15,0.25]
[1642572486739,2.895,138.21,138.15,0.25]
[1642572486969,2.895,138.21,138.15,11.548]
[1642572487137,2.04381217,138.22,138.16,4.25263819]
[1642572487541,12.90091217,138.23,138.17,0.25]
[1642572487738,53.82028187,138.23,138.17,0.25]
[1642572488941,53.82028187,138.23,138.16,24.9588]
[1642572489442,53.82028187,138.23,138.19,0.02238455]
[1642572489643,12.90091217,138.23,138.19,0.02238455]
[1642572491348,2.894,138.22,138.19,0.02238455]
[1642572491544,2.894,138.22,138.2,3.03219997]
[1642572491945,3.03219997,138.21,138.19,0.02238455]
[1642572492145,2.04381217,138.23,138.19,0.27238455]
[1642572492344,2.04381217,138.24,138.19,0.27238455]
[1642572492945,10.857,138.23,138.19,0.27238455]
[1642572493145,2.04381217,138.24,138.19,0.27238455]
[1642572493747,2.04381217,138.24,138.19,6.27238455]
[1642572493950,2.04381217,138.24,138.19,6.02238455]
[1642572494149,2.04381217,138.24,138.19,0.02238455]
[1642572494647,2.04381217,138.24,138.18,41.4142295]
[1642572495249,2.04381217,138.24,138.18,66.0740295]
[1642572495450,12.90001217,138.24,138.18,66.0740295]
[1642572497055,2.04381217,138.24,138.19,0.25]
[1642572497253,2.04381217,138.25,138.2,2.894]
[1642572497451,2.04381217,138.25,138.19,6.25]
[1642572497651,2.04381217,138.26,138.19,6.25]
[1642572498151,12.89841217,138.26,138.19,6.25]
[1642572498350,2.04381217,138.26,138.19,17.1043]
[1642572498751,2.04381217,138.27,138.2,2.892]
[1642572498954,2.04381217,138.28,138.2,25.4187]
[1642572499250,3.68350795,138.29,138.21,6.25]
[1642572499453,3.68350795,138.29,138.23,41.45217347]
[1642572499654,1.63969578,138.29,138.23,41.45217347]
[1642572499853,1.63969578,138.29,138.24,0.25]
[1642572500854,2.04381217,138.31,138.25,2.892]
[1642572501053,2.04381217,138.32,138.25,2.892]
[1642572501251,2.04381217,138.32,138.26,0.25]
[1642572501464,2.04381217,138.32,138.26,6.25]
[1642572501860,2.04381217,138.32,138.26,29.3901]
[1642572502092,2.04381217,138.33,138.26,40.2389]
[1642572502294,2.04381217,138.32,138.26,34.2389]
[1642572502494,4.93581217,138.32,138.26,34.2389]
[1642572503295,15.78571217,138.32,138.26,23.3901]
[1642572503494,10.8499,138.32,138.26,23.3901]
[1642572503694,12.89371217,138.32,138.26,23.3901]
[1642572503893,2.892,138.33,138.26,23.3901]
[1642572503894,4.93581217,138.33,138.26,23.3901]
[1642572504297,4.93581217,138.33,138.26,34.2392]
[1642572504495,4.93581217,138.33,138.28,0.0221118]
[1642572504700,2.04381217,138.33,138.28,0.0221118]
[1642572505098,4.93581217,138.34,138.28,0.0221118]
[1642572505297,13.14301217,138.33,138.28,0.0221118]
[1642572505498,2.892,138.32,138.28,0.0221118]
[1642572505697,0.25,138.31,138.28,0.0221118]
[1642572506602,15.78581217,138.32,138.28,0.0221118]
[1642572506797,10.85,138.32,138.28,0.0221118]
[1642572507005,13.742,138.32,138.28,0.0221118]
[1642572507197,10.85,138.32,138.28,0.0221118]
[1642572509500,10.85,138.32,138.27,0.27205123]
[1642572509700,0.25,138.31,138.27,0.02205123]
[1642572510702,13.742,138.32,138.27,0.02205123]
[1642572512304,10.85,138.32,138.27,0.27205123]
[1642572512502,10.85,138.32,138.27,0.02205123]
[1642572512705,12.89381217,138.32,138.27,0.02205123]
[1642572512903,15.78581217,138.32,138.27,0.02205123]
[1642572513103,10.85,138.32,138.27,0.02205123]
[1642572513303,13.742,138.32,138.27,0.02205123]
[1642572513504,15.78581217,138.32,138.27,0.02205123]
[1642572513706,12.89381217,138.32,138.27,0.02205123]
[1642572514206,0.25,138.31,138.27,0.02205123]
[1642572514409,3.142,138.31,138.26,6.02208151]
[1642572514807,2.892,138.31,138.26,6.02208151]
[1642572515409,2.892,138.31,138.27,0.25]
[1642572515608,12.89381217,138.32,138.27,0.25]
[1642572517308,18.78037316,138.38,138.28,36.892]
[1642572517510,18.78037316,138.38,138.29,6.0]
[1642572517511,6.0,138.37,138.29,6.0]
[1642572517708,6.0,138.37,138.3,2.891]
[1642572518108,6.0,138.37,138.31,43.83795236]
[1642572519509,16.8461,138.37,138.32,0.02199068]
[1642572519713,0.25,138.36,138.32,0.02199068]
[1642572519909,2.891,138.35,138.32,0.02199068]
[1642572520111,3.03219997,138.34,138.32,0.02199068]
[1642572521440,3.03219997,138.34,138.32,3.05419065]
[1642572521839,10.8478,138.35,138.32,3.05419065]
[1642572523140,56.30022988,138.35,138.32,3.05419065]
[1642572523341,3.03219997,138.34,138.32,3.05419065]
[1642572523540,3.03219997,138.34,138.32,0.02199068]
[1642572524441,3.03219997,138.34,138.31,0.27193015]
[1642572524744,3.03219997,138.34,138.32,3.03219997]
[1642572525442,3.03219997,138.34,138.31,0.27193015]
[1642572526543,3.03219997,138.34,138.32,3.03219997]
[1642572527448,3.03219997,138.34,138.31,0.27193015]
[1642572527945,3.03219997,138.34,138.31,0.02193015]
[1642572528146,3.141,138.33,138.31,0.02193015]
[1642572528543,0.25,138.33,138.31,0.02193015]
[1642572528743,34.891,138.32,138.31,0.02193015]
[1642572528946,71.08320024,138.32,138.31,0.02193015]
[1642572529147,39.33320024,138.32,138.31,0.02193015]
[1642572529344,50.18400024,138.32,138.31,0.02193015]
[1642572529546,50.18400024,138.32,138.25,47.03624128]
[1642572529747,13.7418,138.32,138.25,47.03624128]
[1642572530851,10.8508,138.32,138.26,0.25]
[1642572532448,10.8508,138.32,138.26,11.0994]
[1642572532649,10.8508,138.32,138.26,35.3752]
[1642572534652,10.8508,138.32,138.28,0.0221118]
[1642572537755,17.8129338,138.34,138.28,0.0221118]
[1642572537958,10.8491,138.34,138.28,0.0221118]
[1642572538154,3.142,138.33,138.28,0.0221118]
[1642572539503,2.892,138.33,138.26,35.39725123]
[1642572539698,17.8129338,138.34,138.28,35.72537857]
[1642572539902,10.8491,138.34,138.28,35.72537857]
[1642572540099,50.56172724,138.35,138.29,0.25]
[1642572540303,14.9195338,138.35,138.29,0.25]
[1642572540499,10.8477,138.35,138.29,0.25]
[1642572540902,0.25,138.34,138.28,35.72537857]
[1642572541101,3.141,138.34,138.28,35.72537857]
[1642572541300,43.32523031,138.34,138.28,35.72537857]
[1642572542102,47.39706411,138.34,138.28,35.72537857]
[1642572542506,58.24596411,138.34,138.26,10.87075123]
[1642572542802,58.24596411,138.34,138.26,0.02205123]
[1642572543001,8.16095397,138.33,138.26,6.02205123]
[1642572543203,2.892,138.32,138.26,0.02205123]
[1642572543604,6.9638338,138.33,138.26,0.02205123]
[1642572544005,2.892,138.33,138.26,0.27205123]
[1642572544206,0.25,138.32,138.26,0.27205123]
[1642572544405,6.9638338,138.33,138.28,0.0221118]
[1642572544606,10.8507,138.32,138.28,0.0221118]
[1642572549408,10.8507,138.32,138.26,0.27205123]
[1642572549907,10.8507,138.32,138.26,6.27205123]
[1642572550309,10.8507,138.32,138.26,0.27205123]
[1642572550735,0.25,138.31,138.26,0.02205123]
[1642572550910,2.892,138.3,138.26,0.02205123]
[1642572551111,2.892,138.3,138.26,0.27205123]
[1642572552210,3.142,138.31,138.26,0.27205123]
[1642572553914,0.25,138.31,138.26,0.27205123]
[1642572554415,0.25,138.31,138.28,0.0221118]
[1642572554614,3.142,138.31,138.29,3.03219997]
[1642572554815,3.142,138.31,138.28,37.54544368]
[1642572554816,3.03219997,138.3,138.28,37.54544368]
[1642572557417,3.03219997,138.3,138.28,3.05431177]
[1642572557819,3.03219997,138.3,138.28,0.0221118]
[1642572559529,3.03219997,138.3,138.26,44.32532687]
[1642572559724,10.8507,138.32,138.26,44.32532687]
[1642572561226,10.8507,138.32,138.26,55.17462687]
[1642572561425,17.8130338,138.33,138.26,55.17462687]
[1642572561626,0.25,138.32,138.26,55.17462687]
[1642572562527,0.25,138.32,138.27,24.3505]
[1642572564428,0.25,138.32,138.29,0.02208151]
[1642572565329,3.03219997,138.31,138.29,0.02208151]
[1642572569060,3.03219997,138.31,138.3,3.03219997]
[1642572569260,3.03219997,138.31,138.29,0.02208151]
[1642572569459,3.03219997,138.31,138.3,0.02205123]
[1642572572066,49.69977814,138.31,138.3,0.02205123]
[1642572572868,6.17419997,138.31,138.3,0.02205123]
[1642572573068,3.28219997,138.31,138.3,0.02205123]
[1642572573368,13.7419,138.32,138.3,0.02205123]
[1642572573569,10.8499,138.32,138.3,0.02205123]
[1642572574569,10.8499,138.32,138.27,0.27205123]
[1642572577271,47.59529205,138.31,138.27,0.27205123]
[1642572577471,47.84529205,138.31,138.27,0.02205123]
[1642572577673,58.69639205,138.31,138.27,0.02205123]
[1642572578675,61.58839205,138.31,138.27,0.02205123]
[1642572579079,13.9931,138.31,138.27,0.02205123]
[1642572579476,13.9931,138.31,138.26,46.34957825]
[1642572581082,11.1011,138.31,138.26,46.34957825]
[1642572584386,11.1011,138.31,138.28,0.0221118]
[1642572585316,2.53219997,138.3,138.28,0.0221118]
[1642572589120,2.53219997,138.3,138.28,3.55431177]
[1642572590229,10.8508,138.31,138.28,3.55431177]
[1642572594422,10.8508,138.31,138.3,0.02205123]
[1642572594826,13.63299997,138.31,138.3,0.02205123]
[1642572595225,16.52499997,138.31,138.3,0.02205123]
[1642572595523,49.0,138.3,138.23,2.892]
[1642572595723,10.8544,138.28,138.23,2.892]
[1642572595931,2.892,138.27,138.23,2.892]
[1642572596127,44.45881392,138.26,138.23,2.892]
[1642572596323,3.142,138.25,138.17,50.52532057]
[1642572596524,10.775,138.25,138.17,50.52532057]
[1642572596925,47.58392422,138.23,138.17,39.66962057]
[1642572597527,0.25,138.22,138.15,22.8609]
[1642572597726,10.566,138.22,138.12,13.304]
[1642572597924,10.566,138.22,138.15,6.0]
[1642572598126,10.566,138.22,138.13,6.0]
[1642572598328,10.566,138.22,138.12,30.9178]
[1642572598526,10.566,138.22,138.13,43.3813455]
[1642572598726,10.8597,138.2,138.13,43.6313455]
[1642572598926,43.34000101,138.19,138.13,43.6313455]
[1642572599125,3.145,138.19,138.13,43.6313455]
[1642572599326,0.25,138.19,138.13,43.3813455]
[1642572600327,10.8601,138.2,138.13,43.3813455]
[1642572600528,2.894,138.23,138.14,6.0]
[1642572600727,13.304,138.26,138.14,6.25]
[1642572600930,10.41,138.26,138.15,1.35863819]
[1642572601129,2.894,138.25,138.16,6.0]
[1642572601328,4.0718338,138.28,138.16,6.0]
[1642572601329,10.8569,138.24,138.17,44.54851778]
[1642572601530,10.8569,138.24,138.18,6.0]
[1642572601730,0.25,138.23,138.18,6.25]
[1642572602131,3.144,138.24,138.18,6.25]
[1642572603530,10.8573,138.23,138.18,6.25]
[1642572604735,3.144,138.22,138.18,6.0]
[1642572604940,10.8588,138.21,138.18,6.0]
[1642572605137,2.53219997,138.2,138.18,6.0]
[1642572606439,13.39149997,138.2,138.18,6.0]
[1642572606739,13.39149997,138.2,138.17,44.54851778]
[1642572607341,13.39149997,138.2,138.18,3.53219997]
[1642572608544,13.39149997,138.2,138.14,35.4734]
[1642572608742,13.39149997,138.2,138.14,24.6146]
[1642572609541,13.39149997,138.2,138.15,45.42788362]
[1642572609741,0.25,138.19,138.15,45.42788362]
[1642572610967,13.39149997,138.2,138.15,45.42788362]
[1642572611369,10.8586,138.21,138.15,45.42788362]
[1642572611768,0.25,138.2,138.15,45.42788362]
[1642572612170,10.8586,138.21,138.16,0.25]
[1642572612368,13.7517,138.23,138.16,0.25]
[1642572612569,10.8577,138.23,138.17,2.894]
[1642572612774,10.8577,138.23,138.18,0.25]
[1642572613369,10.8577,138.23,138.18,37.85963651]
[1642572614974,10.8577,138.23,138.18,37.60963651]
[1642572615471,13.7517,138.23,138.18,37.60963651]
[1642572616673,10.8577,138.23,138.18,37.60963651]
[1642572617576,1.28136556,138.24,138.18,37.60963651]
[1642572617577,12.13756556,138.24,138.18,37.60963651]
[1642572618177,12.13756556,138.24,138.19,0.25]
[1642572618877,12.13756556,138.24,138.18,37.60963651]
[1642572619280,12.13756556,138.24,138.19,0.25]
[1642572620182,1.28136556,138.24,138.19,0.25]
[1642572620984,1.28136556,138.24,138.19,6.25]
[1642572621584,1.28136556,138.24,138.19,9.144]
[1642572622386,1.28136556,138.24,138.19,34.1418]
[1642572622585,1.28136556,138.24,138.19,44.9966]
[1642572622790,1.28136556,138.24,138.19,42.1026]
[1642572623990,1.28136556,138.24,138.19,31.2478]
[1642572624990,1.28136556,138.24,138.19,30.9978]
[1642572625490,1.28136556,138.24,138.19,41.8525]
[1642572626290,1.28136556,138.24,138.2,0.25]
[1642572627592,1.28136556,138.24,138.21,43.23830319]
[1642572627791,1.28136556,138.24,138.22,3.53219997]
[1642572635332,1.28136556,138.24,138.23,0.25]
[1642572636831,3.81356553,138.24,138.22,3.53219997]
[1642572637432,1.28136556,138.24,138.21,23.9986]
[1642572638132,1.28136556,138.24,138.22,3.03219997]
[1642572639734,1.28136556,138.24,138.23,0.5]
[1642572640434,3.81356553,138.24,138.22,3.03219997]
[1642572640836,3.81356553,138.24,138.21,23.9986]
[1642572641238,3.81356553,138.24,138.22,3.53219997]
[1642572641635,1.28136556,138.24,138.22,3.53219997]
[1642572642636,1.28136556,138.24,138.23,40.08949776]
[1642572645340,2.00679408,138.27,138.23,40.08949776]
[1642572645541,2.00679408,138.28,138.23,40.33949776]
[1642572645740,2.00679408,138.29,138.24,23.2568]
[1642572645942,2.00679408,138.29,138.24,26.1488]
[1642572647245,2.00679408,138.29,138.24,23.2568]
[1642572647442,2.00679408,138.29,138.24,34.1077]
[1642572647743,4.89879408,138.29,138.24,34.1077]
[1642572650046,2.00679408,138.29,138.24,34.1077]
[1642572650447,2.00679408,138.3,138.24,34.1077]
[1642572650647,2.00679408,138.3,138.26,40.06964675]
[1642572650848,2.00679408,138.31,138.27,2.892]
[1642572651049,2.00679408,138.31,138.27,0.25]
[1642572651648,2.00679408,138.32,138.27,6.603]
[1642572651849,2.00679408,138.32,138.28,13.7393]
[1642572652150,2.00679408,138.33,138.28,13.7393]
[1642572652348,2.00679408,138.33,138.27,26.2277466]
[1642572652548,46.89970506,138.35,138.27,25.9777466]
[1642572652549,4.89879408,138.32,138.27,25.9777466]
[1642572652749,2.00679408,138.31,138.27,25.9777466]
[1642572653150,51.5951456,138.3,138.27,25.9777466]
[1642572653350,2.53219997,138.29,138.27,25.9777466]
[1642572653751,2.53219997,138.29,138.27,1.4872466]
[1642572655454,13.38469997,138.29,138.27,1.4872466]
[1642572657158,13.9961,138.28,138.27,1.4872466]
[1642572658860,13.7461,138.28,138.27,1.4872466]
[1642572659062,11.1041,138.28,138.27,1.4872466]
[1642572660460,10.8541,138.28,138.27,1.4872466]
[1642572660961,7.43099405,138.29,138.27,1.4872466]
[1642572660962,5.42419997,138.29,138.27,1.4872466]
[1642572661161,2.53219997,138.29,138.27,5.26944657]
[1642572661460,2.00679408,138.31,138.27,5.01944657]
[1642572661663,2.00679408,138.31,138.28,45.30312413]
[1642572661863,4.89879408,138.32,138.28,45.30312413]
[1642572662165,2.00679408,138.32,138.29,0.25]
[1642572662363,2.00679408,138.32,138.3,3.53219997]
[1642572662564,3.28832412,138.33,138.3,3.53219997]
[1642572663784,3.28832412,138.33,138.31,45.54156144]
[1642572664384,3.28832412,138.33,138.31,49.07376141]
[1642572665384,2.53219997,138.32,138.31,0.5]
[1642572665587,3.28832412,138.33,138.31,0.5]
[1642572665785,3.28832412,138.33,138.32,3.03219997]
[1642572665985,1.28153004,138.33,138.32,3.03219997]
[1642572666787,3.81373001,138.33,138.31,43.1401407]
[1642572666986,0.25,138.32,138.28,24.0965]
[1642572667887,14.13752412,138.33,138.28,24.0965]
[1642572668087,3.28832412,138.33,138.29,42.58213675]
[1642572668288,1.28153004,138.33,138.29,45.72413675]
[1642572669391,1.28153004,138.33,138.29,56.57123675]
[1642572673491,1.28153004,138.33,138.29,53.32063387]
[1642572673892,1.28153004,138.33,138.28,98.9485]
[1642572673893,1.28153004,138.33,138.28,26.9885]
[1642572674093,2.892,138.32,138.28,2.892]
[1642572674294,4.89879408,138.32,138.27,1.4872466]
[1642572674495,4.89879408,138.32,138.28,0.25]
[1642572674893,4.89879408,138.32,138.28,48.46746661]
[1642572675097,2.892,138.32,138.28,48.46746661]
[1642572675695,1.28153004,138.33,138.29,0.25]
[1642572675894,1.28153004,138.33,138.29,9.142]
[1642572676695,1.28153004,138.33,138.29,3.142]
[1642572677101,1.28153004,138.33,138.29,0.25]
[1642572677495,1.28153004,138.33,138.29,11.0966]
[1642572678496,1.28153004,138.33,138.3,6.0]
[1642572678695,1.28153004,138.33,138.31,49.3179289]
[1642572679098,1.28153004,138.33,138.32,3.53219997]
[1642572681100,4.17253004,138.33,138.32,3.53219997]
[1642572681299,6.70473001,138.33,138.28,27.4797]
[1642572681502,6.70473001,138.33,138.29,0.25]
[1642572681799,6.70473001,138.33,138.29,36.01068771]
[1642572682806,3.81373001,138.33,138.29,36.01068771]
[1642572683599,1.28153004,138.33,138.29,36.01068771]
[1642572689613,1.28153004,138.33,138.3,6.0]
[1642572689816,1.28153004,138.33,138.31,0.25]
[1642572690213,2.00679408,138.34,138.31,0.25]
[1642572690413,2.00679408,138.34,138.32,3.53219997]
[1642572690914,2.00679408,138.34,138.32,52.10905097]
[1642572691813,2.00679408,138.34,138.32,3.53219997]
[1642572692814,2.00679408,138.34,138.32,46.11625655]
[1642572696022,2.00679408,138.34,138.32,3.53219997]
[1642572704357,2.00679408,138.34,138.33,42.47901802]
[1642572704659,2.00679408,138.34,138.32,3.53219997]
[1642572704856,4.53899405,138.34,138.32,5.01944657]
[1642572705460,2.00679408,138.34,138.32,5.01944657]
[1642572707257,2.53219997,138.33,138.32,5.01944657]
[1642572707457,2.53219997,138.33,138.32,1.4872466]
[1642572708961,2.00679408,138.34,138.32,5.01944657]
[1642572712365,8.257,138.63,138.32,5.01944657]
[1642572712366,17.8080338,138.38,138.33,6.25]
[1642572712565,4.0718338,138.38,138.33,9.141]
[1642572712764,4.0718338,138.38,138.33,15.858]
[1642572713066,4.3391656,138.39,138.33,15.858]
[1642572713264,1.4481656,138.39,138.34,35.59696545]
[1642572713465,1.4481656,138.39,138.34,46.44016545]
[1642572713665,1.4481656,138.39,138.35,6.25]
[1642572714667,1.4481656,138.39,138.35,30.0923]
[1642572715067,43.46247403,138.39,138.35,30.0923]
[1642572716167,1.4481656,138.39,138.35,30.0923]
[1642572718071,1.4481656,138.39,138.35,29.8423]
[1642572718269,1.4481656,138.39,138.36,0.25]
[1642572718467,2.53219997,138.38,138.36,0.25]
[1642572719674,2.53219997,138.38,138.36,3.78219997]
[1642572719875,1.4481656,138.39,138.36,3.78219997]
[1642572721375,1.4481656,138.39,138.38,0.35928381]
[1642572721776,3.98036557,138.39,138.38,0.35928381]
[1642572722175,4.23036557,138.39,138.38,0.35928381]
[1642572722479,7.12036557,138.39,138.38,0.35928381]
[1642572723312,4.5881656,138.39,138.38,0.35928381]
[1642572723510,4.5881656,138.39,138.38,3.89148378]
[1642572723707,4.5881656,138.39,138.38,0.35928381]
[1642572725508,4.3381656,138.39,138.38,0.35928381]
[1642572725708,1.4481656,138.39,138.38,3.89148378]
[1642572726309,1.4481656,138.39,138.38,3.53219997]
[1642572726709,1.4481656,138.39,138.38,50.63474792]
[1642572729311,2.89,138.41,138.38,50.63474792]
[1642572729511,18.98014879,138.44,138.39,6.0]
[1642572729713,1.17711499,138.44,138.38,47.10254795]
[1642572729919,6.0,138.43,138.38,47.10254795]
[1642572730114,6.0,138.43,138.39,0.25]
[1642572730713,6.0,138.43,138.39,6.25]
[1642572731512,1.17711499,138.44,138.39,6.25]
[1642572732515,1.17711499,138.44,138.39,17.0889]
[1642572733116,1.17711499,138.44,138.39,40.8464]
[1642572735317,1.17711499,138.44,138.4,2.888]
[1642572735617,2.888,138.48,138.41,1.4872466]
[1642572735618,10.8384,138.47,138.41,1.4872466]
[1642572735920,10.8384,138.47,138.41,7.7372466]
[1642572736122,6.0,138.46,138.42,44.0505987]
[1642572736617,6.0,138.47,138.42,44.0505987]
[1642572737219,2.888,138.48,138.42,44.0505987]
[1642572737422,13.7254,138.48,138.42,44.0505987]
[1642572737620,6.25,138.47,138.42,44.0505987]
[1642572737820,2.888,138.46,138.42,44.0505987]
[1642572738021,2.888,138.46,138.41,1.4872466]
[1642572739021,2.888,138.46,138.42,54.43858048]
[1642572739224,6.0,138.47,138.42,48.43858048]
[1642572739624,0.25,138.46,138.42,48.18858048]
[1642572739823,3.138,138.46,138.42,48.18858048]
[1642572740022,0.25,138.46,138.42,48.18858048]
[1642572740224,2.888,138.45,138.42,48.18858048]
[1642572740425,0.25,138.46,138.42,48.18858048]
[1642572740624,2.888,138.47,138.43,3.53219997]
[1642572740827,13.7255,138.48,138.43,3.53219997]
[1642572741025,13.7255,138.48,138.43,28.41909997]
[1642572741328,2.888,138.48,138.43,28.41909997]
[1642572741624,2.888,138.48,138.44,0.25]
[1642572741826,42.92572772,138.49,138.44,0.25]
[1642572742052,4.25789306,138.49,138.44,0.25]
[1642572742227,4.25789306,138.49,138.43,35.7226]
[1642572742725,4.25789306,138.49,138.44,0.25]
[1642572744629,4.25789306,138.49,138.43,35.7226]
[1642572745029,4.25789306,138.49,138.44,0.25]
[1642572745430,1.36989306,138.49,138.44,13.9729]
[1642572745830,2.888,138.5,138.44,13.9729]
[1642572746030,4.0718338,138.52,138.45,79.31863759]
[1642572746229,6.9598338,138.54,138.46,51.5823913]
[1642572746431,2.888,138.54,138.46,149.52132889]
[1642572746630,2.888,138.54,138.47,6.0]
[1642572746828,2.888,138.54,138.48,24.2425]
[1642572747031,14.9031338,138.56,138.48,24.4925]
[1642572747229,3.137,138.55,138.48,24.4925]
[1642572747832,3.137,138.55,138.49,45.16916241]
[1642572748030,44.99618901,138.55,138.49,45.16916241]
[1642572748430,44.74618901,138.55,138.48,35.0743]
[1642572748631,55.57828901,138.55,138.48,24.2425]
[1642572749629,55.57828901,138.55,138.46,2.888]
[1642572749831,0.25,138.54,138.45,74.31982259]
[1642572750030,13.7217,138.53,138.45,74.31982259]
[1642572750231,0.25,138.52,138.46,24.011]
[1642572750431,2.888,138.51,138.46,24.011]
[1642572751030,13.7213,138.54,138.46,24.011]
[1642572751230,2.888,138.54,138.47,3.137]
[1642572751831,2.888,138.54,138.47,2.887]
[1642572752731,0.25,138.53,138.47,2.887]
[1642572752932,13.7225,138.52,138.46,24.011]
[1642572753134,43.91112689,138.52,138.46,24.011]
[1642572753331,43.91112689,138.52,138.47,0.25]
[1642572753530,41.02312689,138.52,138.47,2.888]
[1642572754135,41.02312689,138.52,138.48,0.25]
[1642572756733,13.72,138.55,138.48,0.25]
[1642572756931,13.72,138.55,138.48,23.8073]
[1642572757134,13.72,138.55,138.48,34.6391]
[1642572757530,0.25,138.54,138.48,34.6391]
[1642572757733,2.887,138.53,138.48,34.6391]
[1642572759240,41.1427502,138.54,138.48,34.6391]
[1642572759436,40.8927502,138.54,138.48,80.43239905]
[1642572760241,40.8927502,138.54,138.48,34.6391]
[1642572762944,0.25,138.53,138.48,23.8073]
[1642572763145,2.887,138.52,138.48,23.8073]
[1642572763346,44.00307303,138.51,138.48,23.8073]
[1642572763647,44.00307303,138.51,138.49,3.53219997]